bitfinex/quotes_ETHUSD_20251212
["timestamp","ask_amount","ask_price","bid_price","bid_amount"]
[1765569807097,6.5072393,3073.5,3073.1,0.6628]
[1765569807270,6.5072393,3073.5,3073.1,0.1865]
[1765569807465,0.055,3073.2,3073.1,0.002]
[1765569807671,0.572,3073.2,3073.1,0.002]
[1765569807985,0.517,3073.2,3073.1,0.4681]
[1765569808808,4.23144126,3073.2,3073.1,0.002]
[1765569809095,14.24106281,3073.2,3073.1,0.002]
[1765569809299,4.83323944,3073.2,3073.1,0.002]
[1765569809477,4.71576415,3073.2,3073.1,0.002]
[1765569810080,4.77076415,3073.2,3073.1,0.002]
[1765569810399,4.82576415,3073.2,3073.1,0.002]
[1765569811273,5.23126815,3073.2,3073.1,0.002]
[1765569811770,29.52491044,3073.2,3073.1,0.002]
[1765569811972,29.52491044,3073.2,3072.8,0.002]
[1765569811973,17.87349629,3072.9,3072.8,1e-08]
[1765569812204,3.40987645,3072.9,3072.8,1e-08]
[1765569812505,1.61397929,3072.9,3072.8,1e-08]
[1765569812681,7.73817529,3072.9,3072.8,1e-08]
[1765569813211,10.99243022,3072.9,3072.8,1e-08]
[1765569813696,25.97922522,3072.9,3072.8,1e-08]
[1765569813910,24.04786322,3072.9,3072.8,1e-08]
[1765569814214,26.32807579,3072.9,3072.8,1e-08]
[1765569814423,13.53156179,3072.9,3072.8,1e-08]
[1765569814712,9.31363979,3072.9,3072.8,1e-08]
[1765569814874,8.54973222,3072.9,3072.8,1e-08]
[1765569816169,4.81323422,3072.9,3072.8,1e-08]
[1765569816384,4.40773022,3072.9,3072.8,1e-08]
[1765569816587,4.81323422,3072.9,3072.8,1e-08]
[1765569817302,4.86823422,3072.9,3072.8,1e-08]
[1765569817504,5.68047189,3072.9,3072.8,1e-08]
[1765569818077,5.10747189,3072.9,3072.8,1e-08]
[1765569818297,5.62547189,3072.9,3072.8,1e-08]
[1765569818497,5.68047189,3072.9,3072.8,1e-08]
[1765569819304,21.29539889,3072.9,3072.8,1e-08]
[1765569819530,16.73141589,3072.9,3072.8,1e-08]
[1765569820106,14.18858789,3072.9,3072.8,1e-08]
[1765569820275,9.10647189,3072.9,3072.8,1e-08]
[1765569820480,12.05385189,3072.9,3072.8,1e-08]
[1765569820811,5.62547189,3072.9,3072.8,1e-08]
[1765569821178,9.10647189,3072.9,3072.8,1e-08]
[1765569822086,21.27712589,3072.9,3072.8,1e-08]
[1765569823022,18.20242889,3072.9,3072.8,1e-08]
[1765569825350,12.54545789,3072.9,3072.8,1e-08]
[1765569825637,11.53557189,3072.9,3072.8,1e-08]
[1765569826139,4.64696789,3072.9,3072.8,1e-08]
[1765569826325,5.57047189,3072.9,3072.8,1e-08]
[1765569826524,5.62547189,3072.9,3072.8,1e-08]
[1765569826926,5.10747189,3072.9,3072.8,1e-08]
[1765569827127,5.62547189,3072.9,3072.8,1e-08]
[1765569828737,5.68047189,3072.9,3072.8,1e-08]
[1765569828934,9.05147189,3072.9,3072.8,1e-08]
[1765569829137,9.10647189,3072.9,3072.8,1e-08]
[1765569830296,9.05147189,3072.9,3072.8,1e-08]
[1765569830714,5.10747189,3072.9,3072.8,1e-08]
[1765569830909,4.64696789,3072.9,3072.8,0.49800001]
[1765569831137,4.0664926,3072.9,3072.8,0.49800001]
[1765569831343,3.25425493,3072.9,3072.8,0.95650001]
[1765569831504,3.77225493,3072.9,3072.8,0.95650001]
[1765569831905,3.25425493,3072.9,3072.8,0.95650001]
[1765569832124,3.77225493,3072.9,3072.8,0.95650001]
[1765569834237,3.25425493,3072.9,3072.8,0.95650001]
[1765569834604,3.77225493,3072.9,3072.8,0.95650001]
[1765569835102,6.50745102,3073.4,3072.8,0.95650001]
[1765569835304,6.50745102,3073.4,3073.3,0.6887]
[1765569835305,3.25372551,3073.4,3073.3,0.6887]
[1765569835502,3.77172551,3073.4,3073.3,0.6887]
[1765569835737,3.77172551,3073.4,3073.3,1.1472]
[1765569837427,3.25372551,3073.4,3073.3,1.1472]
[1765569837626,3.77172551,3073.4,3073.3,1.1472]
[1765569839910,3.77172551,3073.4,3073.3,0.6887]
[1765569840111,3.25372551,3073.4,3073.3,0.6887]
[1765569840310,3.77172551,3073.4,3073.3,1.1472]
[1765569840605,7.02545102,3073.4,3072.8,1e-08]
[1765569840806,7.68322363,3073.4,3072.8,0.45850001]
[1765569841310,7.68322363,3073.4,3073.3,0.6887]
[1765569841311,3.77172551,3073.4,3073.3,0.6887]
[1765569841510,3.25319626,3073.9,3073.3,0.6887]
[1765569841709,0.518,3073.8,3073.4,0.4925]
[1765569842237,0.518,3073.8,3073.7,0.4719]
[1765569842611,0.518,3073.8,3073.7,0.9644]
[1765569843206,3.7713021,3073.8,3073.7,0.9644]
[1765569843515,0.518,3073.8,3073.7,0.9644]
[1765569843943,0.517,3073.8,3073.7,0.9644]
[1765569845251,3.7703021,3073.8,3073.7,0.9644]
[1765569846108,11.03424772,3073.8,3073.3,0.1907]
[1765569846316,0.405504,3073.7,3073.1,0.187]
[1765569847252,0.405504,3073.5,3072.9,0.187]
[1765569847445,0.517,3073.4,3072.9,0.187]
[1765569847743,0.517,3073.4,3072.9,0.6795]
[1765569847949,0.517,3073.3,3072.9,0.6795]
[1765569848111,0.517,3073.3,3073.0,0.4925]
[1765569848315,0.517,3073.3,3073.2,0.4719]
[1765569848732,0.517,3073.3,3073.2,0.9644]
[1765569849048,9.76054137,3073.6,3073.2,0.9644]
[1765569849049,3.25351379,3073.6,3073.2,0.9644]
[1765569849260,10.33942912,3074.1,3073.5,0.4719]
[1765569849429,1.60909044,3074.0,3073.5,0.4719]
[1765569849624,1.09209044,3074.0,3073.6,0.4925]
[1765569849854,0.517,3073.9,3073.6,0.4925]
[1765569850235,0.517,3073.9,3073.1,0.4925]
[1765569851255,9.7599063,3073.8,3073.1,0.4925]
[1765569851432,1.02769063,3073.7,3073.1,0.4925]
[1765569853257,9.76054137,3073.6,3072.9,0.187]
[1765569853419,0.517,3073.5,3072.9,0.187]
[1765569853621,0.517,3073.4,3072.9,0.187]
[1765569853821,0.517,3073.4,3072.8,1e-08]
[1765569854029,0.405504,3073.3,3072.8,1e-08]
[1765569855248,0.405504,3073.1,3072.8,1e-08]
[1765569855452,1.53373158,3073.0,3072.8,1e-08]
[1765569857558,3.25425493,3072.9,3072.8,0.49250001]
[1765569857719,3.77125493,3072.9,3072.8,0.49250001]
[1765569857924,3.77125493,3072.9,3072.8,0.96440001]
[1765569860238,0.517,3072.9,3072.8,0.96440001]
[1765569860723,0.517,3072.9,3072.8,0.47190001]
[1765569861142,0.517,3072.9,3072.8,0.92710001]
[1765569861988,3.77125493,3072.9,3072.8,0.92710001]
[1765569862869,0.517,3072.9,3072.8,0.92710001]
[1765569864244,3.25396028,3073.2,3072.8,0.92710001]
[1765569864449,0.517,3073.1,3072.9,0.4597]
[1765569864948,0.517,3073.1,3073.0,0.4502]
[1765569865471,10.34101666,3073.6,3073.0,0.9099]
[1765569865681,0.517,3073.5,3073.1,0.643]
[1765569866046,6.50745102,3073.4,3073.2,0.4597]
[1765569866972,3.25372551,3073.4,3073.3,0.4502]
[1765569867155,3.77072551,3073.4,3073.3,0.4502]
[1765569867353,3.25372551,3073.4,3073.3,0.9099]
[1765569867658,3.77072551,3073.4,3073.3,0.4502]
[1765569868072,3.426,3073.9,3073.3,4.16373138]
[1765569868368,0.517,3074.1,3074.0,0.4502]
[1765569868582,0.001,3074.2,3074.0,0.9099]
[1765569868789,0.518,3074.5,3074.3,0.4502]
[1765569869103,0.517,3075.0,3074.7,0.4502]
[1765569869386,0.517,3075.0,3074.8,0.9099]
[1765569871146,3.76905193,3075.0,3074.8,0.4502]
[1765569871346,3.76905193,3075.0,3074.8,0.9099]
[1765569871988,3.76905193,3075.0,3074.5,0.4597]
[1765569872399,3.76905193,3075.0,3074.8,0.4502]
[1765569872689,7.02110386,3075.0,3074.5,0.4597]
[1765569872987,3.76905193,3075.0,3074.5,0.4597]
[1765569873180,3.76905193,3075.0,3074.8,0.4502]
[1765569873583,3.76905193,3075.0,3074.8,0.9099]
[1765569873900,3.76905193,3075.0,3074.8,0.4502]
[1765569874400,3.76905193,3075.0,3074.8,0.9099]
[1765569876111,3.76905193,3075.0,3074.8,0.4502]
[1765569876515,3.76905193,3075.0,3074.8,0.9099]
[1765569880284,1.04321622,3074.9,3074.1,0.1833]
[1765569880483,0.98321622,3074.9,3074.2,0.4597]
[1765569880684,0.001,3074.9,3074.8,0.4502]
[1765569880908,0.518,3074.9,3074.8,0.4502]
[1765569881589,3.77013828,3074.9,3074.8,0.4502]
[1765569882405,3.77013828,3074.9,3074.8,0.9099]
[1765569882610,0.518,3074.9,3074.8,0.9099]
[1765569883318,0.518,3074.9,3074.8,4.16214404]
[1765569884008,0.518,3074.9,3074.8,0.9099]
[1765569884215,0.518,3074.9,3074.8,4.2565912]
[1765569884216,0.001,3074.9,3074.8,4.2565912]
[1765569884400,0.001,3074.9,3074.8,4.86958893]
[1765569884590,0.001,3074.9,3074.8,4.83706649]
[1765569885502,0.001,3074.9,3074.8,1.49037529]
[1765569886290,0.001,3074.9,3074.8,4.74261933]
[1765569886686,0.001,3074.9,3074.8,4.83706649]
[1765569887098,0.001,3074.9,3074.8,4.86958893]
[1765569887309,0.001,3074.9,3074.8,4.83706649]
[1765569894206,0.001,3074.9,3074.8,4.28291933]
[1765569894515,0.001,3074.9,3074.8,4.76341933]
[1765569895100,0.001,3075.5,3075.3,0.6821]
[1765569895315,0.001,3076.2,3075.6,0.4924]
[1765569895526,0.001,3076.2,3076.1,0.6821]
[1765569895746,0.001,3076.2,3076.1,1.1626]
[1765569896036,0.001,3076.5,3076.1,12.486639]
[1765569896191,0.001,3076.5,3076.4,0.4924]
[1765569896831,0.001,3076.5,3076.4,4.80392788]
[1765569897927,0.001,3076.5,3076.4,26.40119588]
[1765569898738,0.001,3076.5,3076.4,25.99569188]
[1765569899050,0.001,3076.5,3076.4,7.80064688]
[1765569899412,0.001,3076.5,3076.4,4.80392788]
[1765569899613,0.001,3076.5,3076.4,1.55337529]
[1765569899843,0.001,3076.5,3076.4,1.07287529]
[1765569900146,0.001,3076.5,3076.1,0.6702]
[1765569900520,0.063,3076.2,3075.4,0.09444716]
[1765569900843,3.31385559,3076.2,3075.4,3.25157156]
[1765569901019,3.31385559,3076.2,3075.5,0.58047529]
[1765569901225,0.063,3076.1,3074.9,0.57494716]
[1765569901449,0.063,3076.1,3074.9,3.82699022]
[1765569901651,0.405504,3076.0,3074.6,3.25244837]
[1765569901944,0.64347529,3076.1,3074.7,0.57494716]
[1765569902119,0.517,3076.0,3074.9,0.09444716]
[1765569902319,0.517,3076.0,3075.0,3.73251589]
[1765569902545,0.517,3076.0,3075.2,3.25172935]
[1765569902716,3.25108098,3075.9,3075.1,3.92208846]
[1765569903348,3.25108098,3075.9,3075.1,3.44158846]
[1765569903531,6.50216196,3075.9,3075.2,0.4805]
[1765569903739,6.56516196,3075.9,3075.1,0.1897]
[1765569903950,0.063,3075.8,3075.0,0.58047529]
[1765569904117,0.063,3075.8,3075.0,3.25202636]
[1765569904611,3.25108098,3075.9,3075.1,3.92209417]
[1765569905014,3.25108098,3075.9,3075.2,0.4805]
[1765569905438,0.063,3076.7,3075.8,0.4924]
[1765569905641,0.517,3076.4,3075.8,0.4924]
[1765569905912,0.001,3076.5,3075.8,0.9729]
[1765569906340,0.001,3076.5,3075.9,0.4805]
[1765569906745,0.001,3076.5,3076.0,3.25097529]
[1765569906917,0.001,3076.5,3075.9,1.06097529]
[1765569907117,0.001,3076.5,3075.9,3.73155417]
[1765569907317,0.001,3076.5,3076.0,0.4805]
[1765569907518,0.001,3076.5,3076.0,0.57494716]
[1765569907817,0.001,3076.5,3076.1,0.1897]
[1765569908229,0.001,3076.5,3076.1,0.6702]
[1765569909150,0.001,3076.5,3076.4,0.4924]
[1765569909676,0.001,3076.5,3076.4,0.9729]
[1765569910646,0.001,3076.5,3076.4,7.51058129]
[1765569910849,0.001,3076.5,3076.4,4.80392788]
[1765569911715,0.001,3076.5,3076.4,4.8364334]
[1765569911954,0.001,3077.6,3077.2,0.6821]
[1765569912321,0.001,3077.6,3077.3,0.4805]
[1765569912939,0.001,3077.6,3077.2,0.1897]
[1765569912940,0.064,3077.4,3076.9,0.58047529]
[1765569913141,0.001,3077.6,3077.0,3.24985623]
[1765569913345,0.001,3077.6,3077.5,0.4924]
[1765569913547,0.001,3077.6,3077.1,0.4805]
[1765569913752,0.065,3077.6,3077.0,0.58047529]
[1765569913956,0.001,3077.6,3077.1,0.58047529]
[1765569914156,0.001,3077.6,3077.0,0.09444716]
[1765569915031,0.517,3077.5,3077.1,0.58047529]
[1765569915235,0.517,3077.5,3077.0,0.09444716]
[1765569915958,0.517,3077.5,3077.1,0.58047529]
[1765569916345,0.001,3077.6,3077.4,0.4924]
[1765569916555,0.001,3077.6,3077.5,0.4924]
[1765569916857,0.001,3077.6,3077.5,0.58684716]
[1765569917061,0.001,3077.6,3077.5,4.31673789]
[1765569917430,0.001,3077.6,3077.5,1.06734716]
[1765569917625,0.001,3077.6,3077.5,4.89721318]
[1765569917935,0.064,3078.9,3078.0,0.58047529]
[1765569918136,0.028963,3079.2,3078.3,0.4924]
[1765569918470,3.34161564,3079.2,3078.3,0.4924]
[1765569918632,6.58926828,3079.2,3078.1,0.1944]
[1765569918831,6.58926828,3079.2,3077.8,0.517]
[1765569918832,0.065,3079.1,3077.8,9.02144]
[1765569919168,6.49582642,3078.9,3077.9,0.58047529]
[1765569919469,0.065,3077.9,3077.1,0.1944]
[1765569919680,0.517,3077.8,3077.2,6.49941504]
[1765569919842,0.517,3077.8,3077.3,0.58047529]
[1765569920282,0.517,3077.8,3077.2,0.58047529]
[1765569921135,0.517,3077.8,3077.4,0.58047529]
[1765569921631,0.517,3077.8,3077.4,1.05787529]
[1765569921850,0.517,3077.8,3077.4,1.15232245]
[1765569922050,3.24823239,3078.6,3077.7,0.4917]
[1765569922258,0.517,3078.5,3077.7,0.4917]
[1765569923332,6.56188148,3078.4,3077.4,3.24947819]
[1765569923543,6.56188148,3078.4,3076.7,0.67492245]
[1765569923544,8.03904946,3078.0,3076.7,0.67492245]
[1765569923755,0.065,3077.4,3076.5,3.25042976]
[1765569924162,0.517,3077.3,3076.5,3.72782976]
[1765569924663,0.517,3077.4,3076.6,0.4774]
[1765569924867,0.517,3077.4,3076.7,3.25023564]
[1765569925055,0.517,3077.4,3076.8,1.05787529]
[1765569925637,0.517,3077.4,3076.9,3.25002437]
[1765569925865,3.24896845,3077.9,3076.9,3.25002437]
[1765569926034,0.517,3077.8,3076.9,3.25002437]
[1765569926733,0.517,3077.8,3076.8,4.30796309]
[1765569926945,0.065,3077.7,3076.7,3.2501607]
[1765569927144,0.065,3077.7,3076.9,0.58047529]
[1765569927560,6.4985703,3077.6,3076.8,0.58047529]
[1765569927764,6.4985703,3077.6,3076.8,3.83058961]
[1765569927965,3.24928515,3077.6,3076.9,3.25001988]
[1765569928353,6.4985703,3077.6,3076.6,0.4774]
[1765569928670,6.4985703,3077.6,3076.8,3.8305939]
[1765569928671,7.20662733,3077.6,3076.8,3.8305939]
[1765569928964,7.20662733,3077.6,3076.8,0.58047529]
[1765569929164,7.20662733,3077.6,3076.6,0.4774]
[1765569929366,7.20662733,3077.6,3076.9,0.58047529]
[1765569929559,0.517,3077.5,3076.8,0.58047529]
[1765569929733,3.24875735,3078.1,3076.8,0.58047529]
[1765569929734,0.517,3077.4,3076.8,1.05787529]
[1765569930374,0.517,3077.4,3076.8,0.58047529]
[1765569931050,0.517,3077.4,3076.9,0.4774]
[1765569931639,0.517,3077.4,3076.9,4.30789502]
[1765569931838,0.517,3077.4,3076.9,0.4774]
[1765569932276,0.517,3077.4,3076.9,3.72742101]
[1765569932480,0.517,3077.4,3077.0,0.4774]
[1765569932687,3.2482832,3078.6,3077.3,0.6826]
[1765569932891,10.32700566,3078.5,3077.6,0.4917]
[1765569933054,10.32700566,3078.5,3077.3,0.1909]
[1765569933251,1.09770057,3078.4,3077.3,0.1909]
[1765569933878,6.56209254,3078.3,3077.3,3.44040909]
[1765569934544,6.49709254,3078.3,3077.3,0.1909]
[1765569934750,0.065,3078.2,3077.3,3.44049914]
[1765569934950,0.065,3078.2,3077.3,3.91789914]
[1765569935582,3.24854627,3078.3,3077.4,0.58047529]
[1765569935784,3.24844074,3078.4,3077.6,0.58047529]
[1765569935993,6.49690872,3078.4,3077.6,0.58047529]
[1765569937269,6.56190872,3078.4,3077.6,0.58047529]
[1765569937484,0.77289087,3078.3,3077.5,0.58047529]
[1765569937690,3.2486518,3078.2,3077.6,0.58047529]
[1765569937894,6.4973036,3078.2,3077.4,3.24941996]
[1765569938184,6.4973036,3078.2,3077.5,0.58047529]
[1765569938682,3.2486518,3078.2,3077.6,0.58047529]
[1765569938884,3.95647784,3078.3,3077.6,0.58047529]
[1765569939182,0.517,3078.1,3077.7,0.4774]
[1765569940178,0.517,3078.1,3077.4,0.09444716]
[1765569940372,0.517,3078.1,3077.3,0.6683]
[1765569940688,3.76577032,3078.1,3077.6,0.58047529]
[1765569940990,7.01454064,3078.1,3077.3,0.1909]
[1765569941192,0.065,3077.4,3076.8,0.09444716]
[1765569941356,0.065,3077.4,3076.9,3.72739718]
[1765569941560,0.517,3077.6,3077.1,3.24975455]
[1765569941761,0.517,3077.6,3077.2,3.24968624]
[1765569942078,0.517,3077.6,3077.1,3.44068453]
[1765569942582,0.517,3077.6,3077.2,0.4774]
[1765569942770,0.517,3077.6,3077.1,3.44068453]
[1765569943382,3.24919918,3077.7,3077.2,0.4774]
[1765569943592,6.49846018,3077.7,3077.1,0.1909]
[1765569943781,0.065,3077.2,3076.6,0.67492245]
[1765569943983,7.16570742,3077.7,3076.6,0.67492245]
[1765569943984,0.58047529,3078.5,3077.6,0.6826]
[1765569944183,3.83044074,3078.4,3077.6,0.4917]
[1765569944496,3.24844074,3078.4,3077.6,3.74094548]
[1765569944797,7.01388148,3078.4,3077.5,0.58047529]
[1765569945104,0.065,3077.6,3077.1,0.58047529]
[1765569945276,0.065,3076.5,3075.9,0.002]
[1765569945605,0.517,3076.4,3075.9,0.002]
[1765569945966,0.517,3076.4,3075.9,0.58247529]
[1765569946374,0.517,3076.4,3075.9,0.002]
[1765569946764,3.76755407,3076.4,3075.9,0.002]
[1765569947108,3.76755407,3076.4,3075.9,0.58247529]
[1765569948387,3.25036994,3076.6,3076.0,0.4774]
[1765569948618,0.517,3076.5,3076.0,0.4774]
[1765569949093,0.517,3076.5,3075.9,3.25307776]
[1765569949882,0.517,3076.5,3075.9,0.002]
[1765569950312,0.517,3076.5,3075.9,3.83354342]
[1765569950621,3.76748482,3076.5,3075.9,3.83354342]
[1765569950824,3.76748482,3076.5,3075.9,0.002]
[1765569951791,3.76748482,3076.5,3075.9,3.25307193]
[1765569952316,3.76748482,3076.5,3075.9,0.58247529]
[1765569953021,7.01796964,3076.5,3075.9,0.58247529]
[1765569953335,0.065,3076.0,3075.9,0.002]
[1765569953631,0.582,3076.0,3075.9,0.002]
[1765569953991,0.517,3076.4,3075.9,0.9735]
[1765569954331,0.517,3076.4,3075.9,0.002]
[1765569954332,0.065,3076.0,3075.9,0.002]
[1765569955121,0.582,3076.0,3075.9,0.002]
[1765569956218,0.517,3076.0,3075.9,0.002]
[1765569956515,0.582,3076.0,3075.9,0.002]
[1765569956940,0.517,3076.0,3075.9,0.002]
[1765569960326,0.065,3077.5,3075.9,0.9735]
[1765569960492,0.582,3077.4,3076.2,0.09444716]
[1765569960697,0.405504,3077.3,3075.9,0.002]
[1765569960926,0.470504,3077.3,3075.9,0.4801]
[1765569961092,0.065,3077.2,3075.9,0.4801]
[1765569962029,6.49962626,3077.1,3076.0,3.25097529]
[1765569962201,0.98144004,3077.0,3076.0,3.25097529]
[1765569962412,0.517,3076.9,3076.1,0.1987]
[1765569962637,0.517,3076.9,3076.1,0.6768]
[1765569963720,0.517,3076.8,3076.2,0.09444716]
[1765569963927,0.517,3076.8,3076.1,0.1987]
[1765569964127,3.76719272,3076.8,3076.1,3.44947493]
[1765569964545,3.76719272,3076.8,3076.2,3.25075777]
[1765569964713,3.76719272,3076.8,3076.1,3.92762656]
[1765569965036,3.24970752,3077.2,3076.3,0.58047529]
[1765569965219,0.517,3077.1,3076.3,0.58047529]
[1765569965419,0.517,3077.1,3076.3,1.05857529]
[1765569965609,0.517,3077.1,3076.1,0.1987]
[1765569965610,0.065,3076.4,3076.1,0.1987]
[1765569965809,0.065,3076.4,3075.9,0.002]
[1765569966045,0.065,3076.4,3076.0,0.4781]
[1765569966241,0.517,3076.6,3076.2,0.58047529]
[1765569967635,0.517,3076.6,3076.2,1.05857529]
[1765569967950,0.065,3076.3,3075.9,0.58247529]
[1765569968148,3.76734911,3076.6,3075.9,0.58247529]
[1765569968149,0.065,3076.0,3075.9,0.002]
[1765569968443,3.76786767,3076.2,3075.9,0.002]
[1765569968444,0.517,3076.2,3075.9,0.002]
[1765569969161,0.065,3076.0,3075.9,0.002]
[1765569969835,3.31597529,3076.0,3075.9,0.002]
[1765569970050,3.76425198,3076.0,3075.9,0.002]
[1765569971660,4.16975598,3076.0,3075.9,0.002]
[1765569973827,3.76425198,3076.0,3075.9,0.002]
[1765569974724,4.16975598,3076.0,3075.9,0.002]
[1765569975062,19.23118727,3076.0,3075.9,0.002]
[1765569975231,9.18973718,3076.0,3075.9,0.002]
[1765569975437,7.88339518,3076.0,3075.9,0.002]
[1765569976126,15.10505618,3076.0,3075.9,0.002]
[1765569976321,4.92005018,3076.0,3075.9,0.002]
[1765569976545,5.26723127,3076.0,3075.9,0.002]
[1765569977512,4.86172727,3076.0,3075.9,0.002]
[1765569982217,4.27972727,3076.0,3075.9,0.002]
[1765569982508,3.83297529,3076.0,3075.9,0.002]
[1765569984016,3.76797529,3076.0,3075.9,0.002]
[1765569984620,3.76797529,3076.0,3075.9,0.9517]
[1765569984621,0.517,3076.0,3075.9,0.9517]
[1765569985387,6.49944797,3077.2,3075.9,0.9517]
[1765569985588,1.1734448,3077.1,3076.0,0.488]
[1765569985886,1.75392009,3077.1,3076.0,0.488]
[1765569986118,1.75392009,3077.1,3076.1,0.19]
[1765569986420,1.1734448,3077.1,3076.1,0.19]
[1765569986723,1.1734448,3077.1,3076.2,0.488]
[1765569986724,6.4998375,3077.0,3076.2,0.488]
[1765569987088,3.24991875,3077.0,3076.2,0.488]
[1765569987297,0.517,3076.9,3076.2,0.488]
[1765569988289,3.24991875,3077.0,3076.8,0.4617]
[1765569988486,3.76702437,3076.9,3076.8,0.4617]
[1765569988722,3.83202437,3076.9,3076.2,0.488]
[1765569988890,7.08204874,3076.9,3076.2,0.488]
[1765569989422,3.83202437,3076.9,3076.2,3.73873495]
[1765569989894,3.83202437,3076.9,3076.2,0.488]
[1765569990103,3.83202437,3076.9,3076.2,3.73874945]
[1765569990301,3.83202437,3076.9,3076.3,0.488]
[1765569990501,3.83202437,3076.9,3076.3,3.73864582]
[1765569990701,3.83202437,3076.9,3076.4,0.488]
[1765569991424,7.08204874,3076.9,3076.4,0.488]
[1765569991823,7.08204874,3076.9,3076.1,0.19]
[1765569992037,7.08204874,3076.9,3076.1,0.678]
[1765569992525,7.08204874,3076.9,3076.2,0.488]
[1765569994822,0.065,3076.8,3076.1,0.19]
[1765569995120,7.08204874,3076.9,3075.9,0.58247529]
[1765569995329,7.01704874,3076.9,3076.0,3.25095984]
[1765569995510,7.01704874,3076.9,3076.1,3.25086606]
[1765569995715,7.01704874,3076.9,3076.1,3.92886606]
[1765569995924,7.01704874,3076.9,3076.2,3.25075881]
[1765569996228,3.24949632,3077.4,3076.2,3.25075881]
[1765569996404,0.517,3077.3,3076.8,0.4617]
[1765569997133,6.49941504,3077.2,3076.8,0.4617]
[1765569997830,3.24901568,3077.9,3076.1,0.28444716]
[1765569997831,3.24834689,3078.5,3077.1,0.6517]
[1765569998030,0.065,3077.8,3077.1,0.4617]
[1765569998240,0.517,3077.9,3076.7,3.25018062]
[1765569998409,1.60787473,3077.9,3076.9,0.488]
[1765569998928,0.58047529,3077.7,3076.9,0.488]
[1765569999431,0.065,3077.0,3076.6,0.488]
[1765569999643,0.065,3077.6,3076.3,0.58047529]
[1765569999644,0.517,3076.9,3076.3,0.58047529]
[1765569999804,0.517,3076.9,3076.4,0.488]
[1765570000333,0.58047529,3077.7,3076.8,0.4617]
[1765570000627,0.517,3077.6,3076.9,0.488]
[1765570000926,6.49878146,3077.5,3076.9,0.488]
[1765570001126,6.49878146,3077.5,3076.6,3.25033535]
[1765570001330,6.49878146,3077.5,3076.6,0.488]
[1765570001522,7.58332815,3077.5,3076.7,0.488]
[1765570001908,7.58332815,3077.5,3076.7,3.73815901]
[1765570002230,7.58332815,3077.5,3076.8,3.2501272]
[1765570002405,3.24939073,3077.5,3076.8,3.7381272]
[1765570002607,3.24939073,3077.5,3076.9,0.488]
[1765570003021,6.49878146,3077.5,3076.9,0.488]
[1765570003601,3.24939073,3077.5,3076.9,0.488]
[1765570004536,0.517,3077.4,3076.9,0.488]
[1765570005108,0.517,3077.4,3076.7,3.25019765]
[1765570005329,0.517,3077.4,3076.7,3.73819765]
[1765570005548,0.517,3077.4,3076.5,0.58047529]
[1765570005549,0.065,3076.8,3076.5,0.58047529]
[1765570005731,0.582,3076.8,3076.5,0.58047529]
[1765570006049,0.065,3076.6,3076.1,0.678]
[1765570006849,0.517,3076.8,3076.2,0.488]
[1765570007406,6.49962626,3077.1,3076.2,3.73869584]
[1765570007626,0.517,3077.0,3076.2,3.73869584]
[1765570007840,0.517,3077.0,3076.3,0.488]
[1765570008246,3.939,3077.0,3076.3,0.488]
[1765570008417,0.517,3077.0,3076.3,0.488]
[1765570009809,6.50004874,3076.9,3076.3,0.488]
[1765570010016,7.30505065,3076.9,3076.3,0.488]
[1765570010910,7.30505065,3076.9,3076.1,0.19]
[1765570011127,7.30505065,3076.9,3076.1,3.92646266]
[1765570011128,0.516,3076.8,3076.1,3.92646266]
[1765570011329,0.516,3076.8,3076.1,0.6756]
[1765570011535,0.516,3076.8,3076.2,0.4856]
[1765570012444,3.25023564,3076.7,3076.2,0.4856]
[1765570012851,6.50047128,3076.7,3076.1,0.19]
[1765570013144,3.25023564,3076.7,3076.2,0.4856]
[1765570015847,3.25023564,3076.7,3076.6,0.4955]
[1765570016167,3.25023564,3076.7,3075.9,0.002]
[1765570016168,0.065,3076.3,3075.9,0.002]
[1765570016364,0.065,3076.0,3075.9,0.002]
[1765570017959,3.31597529,3076.0,3075.9,0.002]
[1765570019551,3.38097529,3076.0,3075.9,0.002]
[1765570019973,3.31597529,3076.0,3075.9,0.002]
[1765570020140,4.02425954,3076.0,3075.9,0.002]
[1765570020338,12.53905644,3076.0,3075.9,0.002]
[1765570020540,34.89121373,3076.0,3075.9,0.002]
[1765570020779,30.83126773,3076.0,3075.9,0.002]
[1765570021078,15.26163173,3076.0,3075.9,0.002]
[1765570021248,15.77763173,3076.0,3075.9,0.002]
[1765570021777,16.91933129,3075.4,3075.3,0.00029817]
[1765570021982,27.48095573,3075.4,3075.3,0.00029817]
[1765570022274,24.79631773,3075.4,3075.3,0.00029817]
[1765570022568,32.23245473,3075.4,3075.3,0.00029817]
[1765570023147,28.81045473,3075.4,3075.3,0.00029817]
[1765570023373,31.02342434,3075.4,3075.3,0.00029817]
[1765570023671,27.76794334,3075.4,3075.3,0.00029817]
[1765570023877,26.42990534,3075.4,3075.3,0.00029817]
[1765570024458,24.53696534,3075.4,3075.3,0.00029817]
[1765570028385,27.59740834,3075.4,3075.3,0.00029817]
[1765570028561,27.21836334,3075.4,3075.3,0.00029817]
[1765570028885,0.405504,3074.8,3074.2,0.002]
[1765570029059,18.09017919,3074.7,3074.2,0.002]
[1765570029263,17.79132919,3074.7,3074.2,0.002]
[1765570030689,14.06287519,3074.7,3074.2,0.002]
[1765570030853,17.31522501,3074.7,3074.2,0.002]
[1765570031055,19.37197142,3074.7,3074.2,0.002]
[1765570032487,14.46936842,3074.7,3074.2,0.002]
[1765570032661,14.98636842,3074.7,3074.2,0.002]
[1765570033268,14.98636842,3074.7,3074.0,0.4803]